Cogmind - Beta 14 @@@ ROGUE MODE // 2024.11.15 @ 21:38:21 Player: eEnbyEm Result: Destroyed by as-86866 with Assembled Heavy Rifle Performance ------------- Evolutions (0) 0 Regions Visited (2) 400 Robots Destroyed (11) 55 Value Destroyed (199) 199 Prototype IDs (2) 40 Alien Tech Used (0) 0 Bonus (0) 0 TOTAL SCORE: 694 Bonus ------- None Cogmind --------- Core Integrity 0/250 Matter 255/300 Energy 246/250 System Corruption 0% Temperature Cool (15) Movement Rolling (80) Location -10/Mines Parts ------- > --- POWER (1) -------- Ion Engine > --- PROPULSION (2) --- Wheel Wheel > --- UTILITY (2) ------ Structural Scanner Improved Terrain Scanner > --- WEAPON (2) ------- Medium Laser Light Assault Rifle > --- INVENTORY (5) ---- Ion Engine Light Ion Engine Wheel Particle Gun Rocket Launcher Peak State ------------ > --- POWER ------------ Ion Engine > --- PROPULSION ------- Wheel Wheel > --- UTILITY ---------- Structural Scanner Improved Terrain Scanner > --- WEAPON ----------- Particle Gun Light Assault Rifle > --- INVENTORY -------- Aluminum Leg Aluminum Leg Wheel Light Assault Rifle [Rating: 10] Favorites ----------- Power Ion Engine Engine Ion Engine Propulsion Wheel Leg Aluminum Leg Wheel Wheel Utility Improved Terrain Scanner Device Improved Terrain Scanner Storage High-capacity Storage Unit Weapon Light Assault Rifle Energy Gun Medium Laser Ballistic Gun Light Assault Rifle Build | -11 -10 -10 ------- Run | Yrd Mat Min Slots Evolved . | . . . Power . | . . . Propulsion . | . . . Utility . | . . . Weapon . | . . . Parts Attached 25 | 7 17 1 Power 4 | 1 3 . Engine 4 | 1 3 . Core . | . . . Reactor . | . . . Propulsion 10 | 2 8 . Treads . | . . . Leg 2 | . 2 . Wheel 8 | 2 6 . Hover . | . . . Flight . | . . . Utility 6 | 2 3 1 Device 5 | 2 2 1 Storage 1 | . 1 . Processor . | . . . Hackware . | . . . Protection . | . . . Artifact . | . . . Weapon 5 | 2 3 . Energy Gun 3 | 1 2 . Energy Cannon . | . . . Ballistic Gun 2 | 1 1 . Ballistic Cannon . | . . . Launcher . | . . . Special Weapon . | . . . Impact Weapon . | . . . Slashing Weapon . | . . . Piercing Weapon . | . . . Special Melee Weapon . | . . . Unidentified Prototypes . | . . . Parts Lost 4 | . 4 . Power 1 | . 1 . Propulsion 1 | . 1 . Utility 1 | . 1 . Weapon 1 | . 1 . Highest Loss Streak 3 | . 3 . To Critical Strikes . | . . . Average Slot Usage (%) 95 | . 93 100 Engine 11 | . 10 14 Leg 6 | . 9 . Wheel 21 | . 18 28 Device 26 | . 26 28 Energy Gun 13 | . 12 14 Ballistic Gun 14 | . 14 14 Peak Build Rating 10 | 9 10 9 Average Rating 7 | 3 8 9 On Entrance 6 | . 9 9 Naked Turns . | . . . Heaviest Build 47 | 8 47 10 Greatest Support 20 | 20 20 20 Greatest Overweight (x) 2 | . 2 . Average Overweight (x) . | . . . Largest Inventory Capacity 20 | 5 20 5 Average Capacity 5 | 5 5 5 Most Carried 5 | 4 5 5 Average Carried 3 | 1 3 5 Final Capacity 5 | 5 5 5 Final Carried 5 | 2 5 5 Class Distribution -------------------- 77% | Mutant 22% | Scavenger-Mutant Dominant Class ---------------- Mutant | -10/Materials Mutant | -10/Mines Resources | -11 -10 -10 ----------- Run | Yrd Mat Min Matter Collected 437 | 264 162 11 Remotely . | . . . Salvage Created 256 | 77 179 . Parts 23 | 10 13 . Haulers Intercepted . | . . . Recyclers Shooed . | . . . Parts Field Recycled . | . . . Retrieved Matter . | . . . Parts Self-Destructed . | . . . Prevented . | . . . Kills | -11 -10 -10 ------- Run | Yrd Mat Min Combat Hostiles Destroyed 9 | 1 8 . Guns 8 | 1 7 . AOE 1 | . 1 . Classes Destroyed 3 | 2 1 . Tunneler 2 | 2 . . Swarmer 6 | . 6 . Grunt 3 | 1 2 . Best Kill Streak 3 | 3 3 . Combat Bots Only 3 | 1 3 . Max Kills in Single Turn 2 | 2 2 . Gunslinging 1 | . 1 . Exploded 1 | . 1 . Melee . | . . . Uniques/NPCs Destroyed . | . . . Combat | -11 -10 -10 -------- Run | Yrd Mat Min Hostile Shots Fired 86 | 5 72 9 Missed 29 | . 25 4 Damage Taken 714 | 59 586 69 Core 253 | 23 186 44 Absorbed by Shields . | . . . Core Remaining (%) 90 | 90 . . Volleys Fired 56 | 4 51 1 Largest 2 | 2 2 2 Hottest 85 | 60 85 70 Shots Fired 90 | 8 80 2 Gun 90 | 8 80 2 Cannon . | . . . Launcher . | . . . Special . | . . . Kinetic 56 | 4 51 1 Thermal 17 | . 16 1 Explosive . | . . . Electromagnetic 17 | 4 13 . Robot Hit Streak 6 | 5 6 . Robot Miss Streak 7 | 2 7 3 Penetration Max . | . . . Secondary Targets 2 | . 2 . Max Gunslinging Chain 1 | . 1 . Shots Hit Robots 43 | 5 38 . Core Hits 17 | 4 13 . Critical Kills . | . . . Critical Parts Destroyed . | . . . Critical Strikes . | . . . Melee Attacks . | . . . Impact . | . . . Slashing . | . . . Piercing . | . . . Sneak Attacks . | . . . Combat Hostiles . | . . . Follow-up Attacks . | . . . Damage Inflicted 593 | 139 449 5 Guns 460 | 50 410 . Cannons . | . . . Explosions 128 | 89 39 . Melee . | . . . Ramming 5 | . . 5 Kinetic 250 | 23 227 . Thermal 256 | 89 167 . Explosive . | . . . Electromagnetic 82 | 27 55 . Impact . | . . . Slashing . | . . . Piercing . | . . . Highest Corruption . | . . . Average Corruption . | . . . Corruption Purged . | . . . Corruption Blocked . | . . . Overload Shots . | . . . Overflow Damage . | . . . Projectiles . | . . . Explosions . | . . . Melee . | . . . Knockbacks 1 | . . 1 Impact 1 | . . 1 Kinetic . | . . . Secondary . | . . . Self-Inflicted Damage 2 | . . 2 Shots . | . . . Rammed 1 | . . 1 Targets Rammed 1 | . . 1 Kicked . | . . . Crushed . | . . . Highest Temperature 116 | 50 116 15 Average Temperature 38 | 29 40 15 Received Heat Transfer 282 | 30 231 21 Siege Activations . | . . . Robots Corrupted . | . . . Combat Hostiles . | . . . Parts Fried . | . . . Impact Corruptions . | . . . Robots Melted . | . . . Combat Hostiles . | . . . Parts Melted 1 | . 1 . Heat Transferred 433 | 50 383 . Parts Sabotaged . | . . . Parts Stolen . | . . . Parts Stripped . | . . . Power Chain Reactions 2 | 1 1 . Alert | -11 -10 -10 ------- Run | Yrd Mat Min Peak Influence 263 | 30 263 37 Initial 19 | . 19 7 Average 61 | 8 99 15 Maximum Alert Level 1 | . 1 . Low Security (%) 95 | 100 91 100 Level 1 4 | . 8 . Level 2 . | . . . Level 3 . | . . . Level 4 . | . . . Level 5 . | . . . High Security . | . . . Max Security . | . . . Squads Dispatched . | . . . Investigation . | . . . Extermination . | . . . Reinforcement . | . . . Assault . | . . . Garrison . | . . . Intercept . | . . . Searches Triggered . | . . . Construction Impeded . | . . . Haulers Reinforced . | . . . Active Scanning Responses . | . . . Cargo Convoy Interrupts . | . . . Stealth | -11 -10 -10 --------- Run | Yrd Mat Min Distress Signals 1 | . . 1 Communications Jammed . | . . . Distress Signals . | . . . Times Spotted 20 | 1 16 3 Peak Tracking Total 4 | 1 4 2 Tactical Retreats 2 | . 1 1 Traps | -11 -10 -10 ------- Run | Yrd Mat Min Traps Triggered 1 | . 1 . Indirectly . | . . . Trap Hack Attempts . | . . . Triggered . | . . . Disarmed . | . . . Reprogrammed . | . . . Reused . | . . . Traps Extracted . | . . . Installed . | . . . Triggered . | . . . Machines | -11 -10 -10 ---------- Run | Yrd Mat Min Machines Disabled 1 | . 1 . Max in Single Turn 1 | . 1 . Machines Repaired . | . . . Machines Dismantled . | . . . Machines Sabotaged . | . . . Overloaded Fab Kills . | . . . Hacking | -11 -10 -10 --------- Run | Yrd Mat Min Machines Accessed 4 | . 4 . Terminals 3 | . 3 . Fabricators . | . . . Repair Stations . | . . . Recycling Units 1 | . 1 . Scanalyzers . | . . . Garrison Access . | . . . Total Hacks 10 | . 10 . Successful 6 | . 6 . Failed 4 | . 4 . Catastrophic . | . . . Database Lockouts . | . . . Manual . | . . . Terminals 8 | . 8 . Fabricators . | . . . Repair Stations . | . . . Recycling Units 2 | . 2 . Scanalyzers . | . . . Garrison Access . | . . . Terminal Hacks 6 | . 6 . Record 3 | . 3 . Prototype ID Bank 1 | . 1 . Alert Level 1 | . 1 . Unreport Threat 1 | . 1 . Fabricator Hacks . | . . . Repair Station Hacks . | . . . Recycling Unit Hacks . | . . . Scanalyzer . | . . . Garrison Access Hacks . | . . . Unauthorized Hacks . | . . . Terminals . | . . . Fabricators . | . . . Repair Stations . | . . . Recycling Units . | . . . Scanalyzers . | . . . Garrison Access . | . . . Data Cores Recovered . | . . . Used . | . . . Hacking Detections 2 | . 2 . Full Trace Events 1 | . 1 . Feedback Events . | . . . Feedback Blocked . | . . . Robot Schematics Acquired . | . . . Robots Built . | . . . Authchips . | . . . Time . | . . . Total Robot Build Rating . | . . . Part Schematics Acquired . | . . . Parts Built . | . . . Authchips . | . . . Time . | . . . Total Part Build Rating . | . . . Parts Repaired . | . . . Time . | . . . Parts Recycled . | . . . Recycled Matter . | . . . Retrieved Matter . | . . . Retrieved Components . | . . . Parts Scanalyzed . | . . . Part Schematics Acquired . | . . . Parts Damaged . | . . . Bothacking | -11 -10 -10 ------------ Run | Yrd Mat Min Used RIF Installer . | . . . Robots Hacked . | . . . Non-combat . | . . . Combat . | . . . Robot Hacks Applied . | . . . Relay Couplers Released . | . . . Fabnet Peak Effective % . | . . . Robots Rewired . | . . . Allies Hacked . | . . . Hacks Repelled . | . . . Allies | -11 -10 -10 -------- Run | Yrd Mat Min Total Allies . | . . . Largest Group . | . . . Highest-Rated Group . | . . . Highest-Rated Ally . | . . . Total Orders . | . . . Ally Attacks . | . . . Total Damage . | . . . Kills . | . . . Allies Corrupted . | . . . Allies Melted . | . . . Intel | -11 -10 -10 ------- Run | Yrd Mat Min Robot Analysis Total . | . . . Derelict Logs Recovered 1 | . . 1 Drone Launches . | . . . Drone Recoveries . | . . . Exploration | -11 -10 -10 ------------- Run | Yrd Mat Min Turns Passed 917 | 170 520 227 Spaces Moved 787 | 151 394 242 Core 85 | 85 . . Treads . | . . . Legs 74 | . 74 . Wheels 628 | 66 320 242 Hover . | . . . Flight . | . . . Fastest Speed 50 | 50 80 80 Average Speed 80 | 63 87 80 Slowest Speed 120 | 80 120 80 Overloaded Moves . | . . . Propulsion Burnouts . | . . . Robots Hopped . | . . . Cave-ins Triggered . | . . . Exploration Rate (%) 35 | 6 44 57 Regions Visited 2 Branch Regions 1 Pre-discovered Areas 1 | . . 1 Known Exits Taken . | . . . Unknown Exits Taken 2 | 1 1 . Scrap Searched . | . . . Spaces Dug . | . . . Terrain Destroyed 4 | . 4 . Melee . | . . . Projectile . | . . . AOE 4 | . 4 . Terrain Rammed . | . . . Walls Destroyed . | . . . Machines Disabled . | . . . Actions | -11 -10 -10 --------- Run | Yrd Mat Min Total 988 | 218 494 276 Wait 93 | 48 17 28 Move 785 | 150 393 242 Hop . | . . . Pick Up 21 | 9 11 1 Fast Attach . | . . . Attach 11 | 7 4 . Detach . | . . . Swap 14 | . 13 1 Drop 7 | . 5 2 Fire 56 | 4 51 1 Melee . | . . . Ram 1 | . . 1 Kick . | . . . Crush . | . . . Escape Stasis . | . . . Rewire . | . . . Trap . | . . . Miscellaneous . | . . . Route ------- -11/Scrapyard -10/Materials -10/Mines History --------- Turn | Location | Event 2 | -11/Scrapyard | Met Revision 17 111 | -11/Scrapyard | Discovered new exit (range 8) 171 | -11/Scrapyard | Entered Materials 311 | -10/Materials | Core integrity fell below 50% 312 | -10/Materials | Build established: Mutant 341 | -10/Materials | Lost 3 parts (1p1u1w) 471 | -10/Materials | Core integrity fell below 20% 625 | -10/Materials | Discovered new exit (range 15) 691 | -10/Materials | Entered Mines 717 | -10/Mines | Received a Rocket Launcher from a helpful Derelict 774 | -10/Mines | Assembled infested the area 779 | -10/Mines | Assisted by a Guerilla fighting off Assembled 862 | -10/Mines | Learned location of Zion (-7) 918 | -10/Mines | Destroyed by as-86866 with Assembled Heavy Rifle Last Messages --------------- coming from, and they're closing on this area, come on!" 00814_ MP-OHR(h): "I'll hold them off! Go on ahead or try to find another way!" 00814_ HV Slug penetrates Wall. 00821_ MP-OHR(h) destroyed. 00855_ K-01 Serf collects debris. 00862_ Acquired derelict log, extracted data. World map updated: -7/Zion. 00888_ Acquired 5 matter. 00895_ Acquired 6 matter. 00897_ Dropped Structural Scanner. 00913_ T-07 Excavator is excavating. 00915_ Slammed into T-07 Excavator. Ramming works as a last resort when unarmed or blocked, but can have serious negative consequences. 00915_ T-07 Excavator knocked back. 00915_ Destabilizing: Core damaged (-5). [Achievement: First Step to Greatness] Map ----- +----------------------------------------------------+ | ####### ####??#??#### ##?????? | | ####### ##???#???#### ##?????? | | ####### ##??????#### ###?????? | | ### ########### #####?????? | | ## ########## #####??????? | | ## """ %= *% #####????????? | | ### """ #####%#### ####?????????? | | ## """ ##### #### # ##???????????? | | ## """ ##?## #### # ##???????????? | | ## ##?## # ???????????? | | ###?####### # ?????????? | | ###?####### ###### ##??????? | | ###????#### ###### ##??????? | | ##???##### ###### ##??????? | | ########! | ##### ##??#???? | | ######## !! ##??#???? | | #### ##### ##??????? | | ############ #### ########??????? | | ??#######?## ##### #########??????? | | ???????????????##### ####????????????? | | ?????????????#??#### ###?????????????? | | ???????????????#??## ##??????????????? | | ??????#???????????## ##??????????????? | | ??????????????????## #######?????#???? | | ??????????#???????## #######?????????? | | ?????????????????### a@##?????????? | | ??????????????????####### ##?????????? | | ?#????????????????#######t##?????????? | | ??????????????????#????## ##??????? | | ???????????????????????#### ##??????? | | ???????????????????????########??????? | | ????????#?????????????????#####??????? | | ?????????????????????????????????????? | | ?????????????????????????????????????? | | ?????????????????????????????????????? | | ?????????????????????????????????????? | | ?????????????????????????????????????? | | | | | | | | | | | | | | | | | | | | | | | | | | | +----------------------------------------------------+ Best States ------------- Heat Dissipation 25 Energy Generation 10 Energy Capacity 250 Matter Stores 300 Matter Capacity 300 Sight Range 16 Terrain Scan Range 16 Terrain Scan Density 10 Evasion (%) 55 Item Schematics ----------------- None Robot Schematics ------------------ None Fabricated ------------ Nothing Alien Tech Used ----------------- None Achievements -------------- Everything Is Under Control First Step to Greatness Storm Trooper Challenges ------------ None Game ------ Seed DimensionalShockStorm Manual? 0 Play Time 01:05:04 Cumulative 1.0 hours Start 2024.11.15 @ 16:34:35 End 2024.11.15 @ 21:38:21 Sessions 3 Manual Loads 0 Difficulty Rogue Special Mode None Game No. 1 Rogue 1 Adventurer 0 Explorer 0 Win Type - Total 0 Types 0/0/0/0/0/0/0/0/0 Lore% 0 Gallery% 1 Achievement% 1 Wizard Run 0 Options --------- Layout 1 ASCII 0 Keyboard 0 Movement Mouse Keybinds 0 Fullscreen 1 Font 32/SmallcapsGlow Map View 50x35 Zoom Use 15% Tactical HUD 1 Map Filters NONE Filters NONE Steam 1 RUN: 2997f9e1-4356-4227-be77-9e35a8215dc1